fUSD/lending_fUSD_20250110
["ID","MTS","AMOUNT","RATE_DAILY","PERIOD"]
[348439052,1736529040241,-500.0,9.296e-05,2]
[348439054,1736529040250,-500.0,9.296e-05,2]
[348439056,1736529040261,-513.08,9.296e-05,2]
[348439058,1736529040275,-500.0,9.296e-05,2]
[348439060,1736529040284,-500.0,9.296e-05,2]
[348439062,1736529040294,-500.0,9.296e-05,2]
[348439064,1736529040304,-500.0,9.296e-05,2]
[348439066,1736529040313,-500.0,9.296e-05,2]
[348439068,1736529040323,-500.0,9.296e-05,2]
[348439070,1736529040332,-183.6478321,9.296e-05,2]
[348439073,1736529040352,-316.3521679,9.296e-05,2]
[348439075,1736529040361,-500.0,9.296e-05,2]
[348439077,1736529040371,-500.0,9.296e-05,2]
[348439079,1736529040380,-500.0,9.296e-05,2]
[348439081,1736529040389,-500.54,9.296e-05,2]
[348439082,1736529040399,-500.0,9.296e-05,2]
[348439084,1736529040408,-500.0,9.296e-05,2]
[348439086,1736529040417,-500.0,9.296e-05,2]
[348439089,1736529040429,-500.0,9.296e-05,2]
[348439091,1736529040439,-500.0,9.296e-05,2]
[348439093,1736529040448,-500.0,9.296e-05,2]
[348439095,1736529040457,-559.88,9.296e-05,2]
[348439097,1736529040467,-500.0,9.296e-05,2]
[348439099,1736529040477,-500.0,9.296e-05,2]
[348439101,1736529040486,-647.27,9.296e-05,2]
[348439103,1736529040495,-500.0,9.296e-05,2]
[348439105,1736529040505,-500.0,9.296e-05,2]
[348439107,1736529040514,-500.0,9.296e-05,2]
[348439109,1736529040523,-500.0,9.296e-05,2]
[348439111,1736529040532,-500.0,9.393e-05,2]
[348439113,1736529040542,-500.0,9.393e-05,2]
[348439115,1736529040551,-597.96,9.393e-05,2]
[348439117,1736529040560,-500.0,9.394e-05,2]
[348439119,1736529040576,-399.5161932,9.394e-05,2]
[348439121,1736529040585,-500.0,9.394e-05,2]
[348439123,1736529040595,-500.0,9.394e-05,2]
[348439125,1736529040605,-500.0,9.394e-05,2]
[348439127,1736529040615,-500.0,9.394e-05,2]
[348439129,1736529040625,-500.0,9.394e-05,2]
[348439131,1736529040635,-539.57,9.397e-05,2]
[348439133,1736529040644,-500.0,9.397e-05,2]
[348439135,1736529040653,-692.81,9.397e-05,2]
[348439137,1736529040663,-500.0,9.397e-05,2]
[348439139,1736529040672,-500.0,9.397e-05,2]
[348439141,1736529040683,-500.0,9.397e-05,2]
[348439142,1736529040692,-1219.14,9.397e-05,2]
[348439144,1736529040702,-504.89819131,9.397e-05,2]
[348439147,1736529040714,-546.53180869,9.397e-05,2]
[348439149,1736529040724,-915.43,9.397e-05,2]
[348439151,1736529040733,-1773.45,9.397e-05,2]
[348439153,1736529040742,-3250.68,9.397e-05,2]
[348439155,1736529040752,-540.89,9.397e-05,2]
[348439157,1736529040761,-500.0,9.397e-05,2]
[348439159,1736529040771,-500.0,9.397e-05,2]
[348439161,1736529040781,-1025.56,9.397e-05,2]
[348439163,1736529040790,-500.0,9.397e-05,2]
[348439165,1736529040799,-500.0,9.397e-05,2]
[348439167,1736529040809,-967.39,9.397e-05,2]
[348439169,1736529040818,-635.21,9.397e-05,2]
[348439171,1736529040827,-812.79,9.397e-05,2]
[348439173,1736529040837,-550.45,9.397e-05,2]
[348439175,1736529040846,-30.68913959,9.397e-05,2]
[348439177,1736529040858,-969.31086041,9.397e-05,2]
[348439179,1736529040867,-24.2991396,9.397e-05,2]
[348439181,1736529040879,-376.517365,9.397e-05,2]
[348439184,1736529040902,-257.0334954,9.397e-05,2]
[348439187,1736529040912,-500.0,9.397e-05,2]
[348439189,1736529040921,-261.4084419,9.457e-05,2]
[348439191,1736529040932,-869.1,9.556e-05,2]
[348439193,1736529040942,-500.0,9.556e-05,2]
[348439195,1736529040953,-1464.21,9.556e-05,2]
[348439197,1736529040962,-582.34,9.556e-05,2]
[348439199,1736529040971,-1024.71,9.556e-05,2]
[348439201,1736529040981,-1511.09,9.556e-05,2]
[348439203,1736529040991,-1993.58,9.556e-05,2]
[348439205,1736529041000,-1204.52,9.556e-05,2]
[348439207,1736529041010,-763.82,9.556e-05,2]
[348439209,1736529041020,-2234.93,9.556e-05,2]
[348439211,1736529041029,-701.76,9.556e-05,2]
[348439213,1736529041038,-550.99,9.556e-05,2]
[348439215,1736529041048,-1753.49,9.556e-05,2]
[348439217,1736529041058,-566.03,9.556e-05,2]
[348439219,1736529041068,-982.83,9.556e-05,2]
[348439221,1736529041079,-500.0,9.556e-05,2]
[348439223,1736529041088,-500.0,9.556e-05,2]
[348439225,1736529041097,-612.34,9.556e-05,2]
[348439227,1736529041107,-500.0,9.557e-05,2]
[348439229,1736529041116,-500.0,9.557e-05,2]
[348439231,1736529041125,-500.0,9.557e-05,2]
[348439232,1736529041134,-500.0,9.557e-05,2]
[348439234,1736529041144,-500.0,9.557e-05,2]
[348439236,1736529041153,-500.0,9.557e-05,2]
[348439239,1736529041163,-500.0,9.557e-05,2]
[348439241,1736529041173,-500.0,9.557e-05,2]
[348439242,1736529041183,-500.0,9.557e-05,2]
[348439244,1736529041192,-500.0,9.557e-05,2]
[348439247,1736529041202,-500.0,9.557e-05,2]
[348439249,1736529041212,-500.0,9.557e-05,2]
[348439250,1736529041221,-500.0,9.557e-05,2]
[348439252,1736529041230,-500.0,9.557e-05,2]
[348439254,1736529041240,-500.0,9.557e-05,2]
[348439256,1736529041249,-500.0,9.557e-05,2]
[348439258,1736529041259,-840.66,9.557e-05,2]
[348439260,1736529041273,-346.99431899,9.557e-05,2]
[348439262,1736529041283,-500.0,9.557e-05,2]
[348439265,1736529041292,-580.36,9.557e-05,2]
[348439266,1736529041302,-500.0,9.557e-05,2]
[348439269,1736529041312,-1235.93,9.557e-05,2]
[348439271,1736529041322,-500.0,9.557e-05,2]
[348439273,1736529041331,-500.0,9.557e-05,2]
[348439275,1736529041342,-637.63,9.557e-05,2]
[348439277,1736529041352,-500.0,9.557e-05,2]
[348439279,1736529041363,-500.0,9.557e-05,2]
[348439281,1736529041373,-504.1,9.557e-05,2]
[348439283,1736529041382,-500.0,9.557e-05,2]
[348439285,1736529041392,-500.0,9.557e-05,2]
[348439287,1736529041402,-500.0,9.557e-05,2]
[348439289,1736529041412,-548.25,9.557e-05,2]
[348439291,1736529041421,-844.2,9.557e-05,2]
[348439293,1736529041434,-500.0,9.557e-05,2]
[348439295,1736529041443,-500.0,9.557e-05,2]
[348439297,1736529041452,-1626.16,9.557e-05,2]
[348439299,1736529041462,-500.0,9.557e-05,2]
[348439301,1736529041471,-578.27751004,9.557e-05,2]
[348439303,1736529041481,-500.0,9.557e-05,2]
[348439305,1736529041491,-2642.63,9.557e-05,2]
[348439307,1736529041500,-500.0,9.557e-05,2]
[348439309,1736529041509,-1094.21,9.557e-05,2]
[348439311,1736529041518,-500.0,9.557e-05,2]
[348439313,1736529041527,-500.0,9.557e-05,2]
[348439315,1736529041537,-500.0,9.557e-05,2]
[348439317,1736529041547,-500.0,9.557e-05,2]
[348439319,1736529041556,-519.16,9.557e-05,2]
[348439321,1736529041565,-500.0,9.557e-05,2]
[348439323,1736529041575,-500.0,9.557e-05,2]
[348439325,1736529041584,-629.63197741,9.557e-05,2]
[348439327,1736529041593,-500.0,9.557e-05,2]
[348439329,1736529041602,-500.0,9.557e-05,2]
[348439331,1736529041612,-500.0,9.557e-05,2]
[348439332,1736529041621,-511.86,9.557e-05,2]
[348439334,1736529041630,-500.0,9.557e-05,2]
[348439336,1736529041640,-500.0,9.557e-05,2]
[348439339,1736529041651,-905.8,9.557e-05,2]
[348439340,1736529041661,-500.0,9.557e-05,2]
[348439342,1736529041671,-500.0,9.557e-05,2]
[348439344,1736529041682,-541.02,9.557e-05,2]
[348439347,1736529041692,-500.0,9.557e-05,2]
[348439349,1736529041701,-500.0,9.557e-05,2]
[348439351,1736529041711,-1128.79,9.557e-05,2]
[348439353,1736529041720,-500.0,9.557e-05,2]
[348439355,1736529041729,-657.593393,9.557e-05,2]
[348439357,1736529041739,-527.18,9.557e-05,2]
[348439358,1736529041748,-185.99757602,9.557e-05,2]
[348439360,1736529041757,-585.55,9.557e-05,2]
[348439362,1736529041767,-500.0,9.557e-05,2]
[348439364,1736529041776,-590.08,9.557e-05,2]
[348439366,1736529041786,-513.46,9.557e-05,2]
[348439369,1736529041796,-500.0,9.557e-05,2]
[348439370,1736529041805,-1614.86,9.557e-05,2]
[348439372,1736529041814,-500.0,9.557e-05,2]
[348439374,1736529041823,-194.65057905,9.557e-05,2]
[348439376,1736529041832,-500.0,9.557e-05,2]
[348439378,1736529041842,-865.3,9.557e-05,2]
[348439380,1736529041851,-504.09,9.557e-05,2]
[348439382,1736529041861,-706.88085,9.557e-05,2]
[348439384,1736529041870,-500.0,9.557e-05,2]
[348439386,1736529041879,-2019.24,9.557e-05,2]
[348439388,1736529041889,-500.0,9.557e-05,2]
[348439390,1736529041904,-945.46,9.557e-05,2]
[348439392,1736529041914,-500.0,9.557e-05,2]
[348439394,1736529041923,-2385.40931546,9.557e-05,2]
[348439398,1736529041953,-1543.74068454,9.557e-05,2]
[348439401,1736529041963,-517.02,9.557e-05,2]
[348439402,1736529041972,-500.0,9.557e-05,2]
[348439404,1736529041981,-500.0,9.557e-05,2]
[348439407,1736529041992,-1443.88,9.557e-05,2]
[348439409,1736529042001,-509.92,9.557e-05,2]
[348439411,1736529042011,-500.0,9.557e-05,2]
[348439413,1736529042020,-169.00396412,9.557e-05,2]
[348439536,1736529043225,-500.0,9.282e-05,2]
[348439541,1736529043237,-500.0,9.282e-05,2]
[348439544,1736529043247,-169.330885,9.283e-05,2]
[348439547,1736529043257,-500.0,9.556e-05,2]
[348439550,1736529043269,-500.0,9.556e-05,2]
[348439552,1736529043279,-330.99603588,9.557e-05,2]
[348439554,1736529043289,-1256.77,9.557e-05,2]
[348439557,1736529043298,-798.34,9.557e-05,2]
[348439560,1736529043307,-500.0,9.557e-05,2]
[348439563,1736529043318,-500.0,9.557e-05,2]
[348439566,1736529043328,-2838.98,9.557e-05,2]
[348439569,1736529043337,-500.0,9.557e-05,2]
[348439572,1736529043347,-743.53,9.557e-05,2]
[348439575,1736529043357,-500.0,9.557e-05,2]
[348439578,1736529043365,-2474.33,9.557e-05,2]
[348439581,1736529043375,-1001.91,9.557e-05,2]
[348439583,1736529043384,-618.16,9.557e-05,2]
[348439585,1736529043393,-608.56,9.557e-05,2]
[348439587,1736529043403,-1943.91,9.557e-05,2]
[348439589,1736529043412,-500.0,9.557e-05,2]
[348439591,1736529043421,-500.0,9.557e-05,2]
[348439593,1736529043435,-636.7,9.557e-05,2]
[348439595,1736529043445,-817.92,9.557e-05,2]
[348439597,1736529043455,-500.0,9.557e-05,2]
[348439600,1736529043465,-500.0,9.557e-05,2]
[348439603,1736529043474,-500.0,9.557e-05,2]
[348439606,1736529043483,-2307.64,9.557e-05,2]
[348439609,1736529043493,-590.42,9.557e-05,2]
[348439612,1736529043502,-500.0,9.557e-05,2]
[348439614,1736529043511,-672.59,9.557e-05,2]
[348439617,1736529043521,-2782.54,9.557e-05,2]
[348439620,1736529043531,-500.0,9.557e-05,2]
[348439621,1736529043541,-500.0,9.557e-05,2]
[348439624,1736529043550,-500.0,9.557e-05,2]
[348439626,1736529043560,-502.94,9.557e-05,2]
[348439628,1736529043571,-500.0,9.557e-05,2]
[348439630,1736529043580,-500.79,9.557e-05,2]
[348439632,1736529043593,-657.28,9.557e-05,2]
[348439634,1736529043602,-500.0,9.557e-05,2]
[348439636,1736529043611,-500.0,9.557e-05,2]
[348439638,1736529043620,-500.0,9.557e-05,2]
[348439640,1736529043629,-500.0,9.558e-05,2]
[348439642,1736529043639,-500.0,9.558e-05,2]
[348439644,1736529043648,-500.0,9.558e-05,2]
[348439646,1736529043657,-500.0,9.558e-05,2]
[348439648,1736529043667,-1602.12,9.558e-05,2]
[348439650,1736529043676,-280.66151959,9.558e-05,2]
[348439651,1736529043686,-1260.15,9.558e-05,2]
[348439653,1736529043695,-613.0738862,9.558e-05,2]
[348439655,1736529043704,-2367.34,9.558e-05,2]
[348439657,1736529043714,-1130.18,9.558e-05,2]
[348439659,1736529043723,-2278.99,9.558e-05,2]
[348439662,1736529043732,-1035.37,9.558e-05,2]
[348439665,1736529043741,-693.42,9.558e-05,2]
[348439667,1736529043750,-500.0,9.558e-05,2]
[348439669,1736529043759,-897.93,9.558e-05,2]
[348439671,1736529043768,-782.08,9.562e-05,2]
[348439673,1736529043778,-671.22,9.562e-05,2]
[348439675,1736529043788,-500.0,9.57e-05,2]
[348439677,1736529043797,-500.0,9.57e-05,2]
[348439679,1736529043806,-500.0,9.57e-05,2]
[348439681,1736529043815,-500.0,9.57e-05,2]
[348439706,1736529044046,-500.0,9.57e-05,2]
[348439708,1736529044061,-542.72,9.57e-05,2]
[348439710,1736529044071,-500.0,9.57e-05,2]
[348439711,1736529044081,-500.0,9.57e-05,2]
[348439713,1736529044090,-500.0,9.57e-05,2]
[348439715,1736529044099,-500.0,9.57e-05,2]
[348439716,1736529044109,-500.0,9.57e-05,2]
[348439718,1736529044118,-500.0,9.57e-05,2]
[348439720,1736529044128,-500.0,9.57e-05,2]
[348439722,1736529044137,-500.0,9.57e-05,2]
[348439724,1736529044147,-500.0,9.57e-05,2]
[348439725,1736529044156,-500.0,9.57e-05,2]
[348439727,1736529044165,-500.0,9.57e-05,2]
[348439729,1736529044176,-500.0,9.57e-05,2]
[348439730,1736529044186,-500.0,9.57e-05,2]
[348439732,1736529044195,-513.08,9.57e-05,2]
[348439734,1736529044204,-500.0,9.57e-05,2]
[348439736,1736529044213,-500.0,9.57e-05,2]
[348439737,1736529044223,-500.0,9.57e-05,2]
[348439739,1736529044232,-500.0,9.57e-05,2]
[348439741,1736529044242,-500.0,9.57e-05,2]
[348439742,1736529044251,-500.0,9.57e-05,2]
[348439744,1736529044261,-500.0,9.57e-05,2]
[348439746,1736529044274,-500.0,9.57e-05,2]
[348439748,1736529044284,-500.54,9.57e-05,2]
[348439750,1736529044293,-500.0,9.57e-05,2]
[348439751,1736529044302,-500.0,9.57e-05,2]
[348439753,1736529044313,-500.0,9.57e-05,2]
[348439755,1736529044322,-500.0,9.57e-05,2]
[348439757,1736529044331,-500.0,9.57e-05,2]
[348439758,1736529044340,-500.0,9.57e-05,2]
[348439760,1736529044350,-559.88,9.57e-05,2]
[348439762,1736529044359,-500.0,9.57e-05,2]
[348439763,1736529044369,-500.0,9.57e-05,2]
[348439765,1736529044378,-647.27,9.57e-05,2]
[348439767,1736529044387,-500.0,9.57e-05,2]
[348439769,1736529044396,-500.0,9.57e-05,2]
[348439771,1736529044406,-500.0,9.57e-05,2]
[348439773,1736529044415,-500.0,9.57e-05,2]
[348439774,1736529044425,-381.96,9.589e-05,2]
[348439776,1736529044437,-500.0,9.667e-05,2]
[348439778,1736529044447,-597.96,9.667e-05,2]
[348439780,1736529044456,-500.0,9.668e-05,2]
[348439781,1736529044466,-500.0,9.668e-05,2]
[348439783,1736529044476,-500.0,9.668e-05,2]
[348439785,1736529044486,-500.0,9.668e-05,2]
[348439787,1736529044495,-500.0,9.668e-05,2]
[348439788,1736529044505,-500.0,9.668e-05,2]
[348439790,1736529044515,-500.0,9.669e-05,2]
[348439792,1736529044526,-539.57,9.671e-05,2]
[348439794,1736529044535,-500.0,9.671e-05,2]
[348439795,1736529044545,-692.81,9.671e-05,2]
[348439797,1736529044555,-500.0,9.671e-05,2]
[348439799,1736529044564,-500.0,9.671e-05,2]
[348439801,1736529044573,-1219.14,9.671e-05,2]
[348439802,1736529044582,-1051.43,9.671e-05,2]
[348439804,1736529044592,-915.43,9.671e-05,2]
[348439806,1736529044602,-1773.45,9.671e-05,2]
[348439808,1736529044611,-3250.68,9.671e-05,2]
[348439810,1736529044620,-540.89,9.671e-05,2]
[348439812,1736529044630,-500.0,9.671e-05,2]
[348439813,1736529044639,-500.0,9.671e-05,2]
[348439815,1736529044648,-1025.56,9.671e-05,2]
[348439817,1736529044657,-500.0,9.671e-05,2]
[348439818,1736529044666,-500.0,9.671e-05,2]
[348439820,1736529044675,-967.39,9.671e-05,2]
[348439822,1736529044688,-635.21,9.671e-05,2]
[348439824,1736529044697,-812.79,9.671e-05,2]
[348439826,1736529044707,-550.45,9.671e-05,2]
[348439828,1736529044716,-1000.0,9.671e-05,2]
[348439830,1736529044726,-657.85,9.671e-05,2]
[348439831,1736529044735,-500.0,9.671e-05,2]
[348439833,1736529044745,-1000.0,9.701e-05,2]
[348439835,1736529044755,-500.0,9.729e-05,2]
[348439837,1736529044764,-255.0,9.733e-05,2]
[348439838,1736529044773,-420.0,9.733e-05,2]
[348439840,1736529044783,-869.1,9.83e-05,2]
[348439842,1736529044792,-500.0,9.83e-05,2]
[348439844,1736529044802,-1464.21,9.83e-05,2]
[348439846,1736529044811,-582.34,9.83e-05,2]
[348439848,1736529044820,-1024.71,9.83e-05,2]
[348439850,1736529044829,-1511.09,9.83e-05,2]
[348439851,1736529044839,-1993.58,9.83e-05,2]
[348439853,1736529044848,-1204.52,9.83e-05,2]
[348439855,1736529044858,-763.82,9.83e-05,2]
[348439857,1736529044867,-2234.93,9.83e-05,2]
[348439859,1736529044876,-701.76,9.83e-05,2]
[348439861,1736529044885,-550.99,9.83e-05,2]
[348439862,1736529044894,-1753.49,9.83e-05,2]
[348439864,1736529044905,-566.03,9.83e-05,2]
[348439866,1736529044915,-982.83,9.83e-05,2]
[348439868,1736529044924,-500.0,9.83e-05,2]
[348439870,1736529044937,-500.0,9.83e-05,2]
[348439872,1736529044947,-612.34,9.83e-05,2]
[348439874,1736529044958,-500.0,9.83e-05,2]
[348439875,1736529044968,-469.36,9.83e-05,2]
[348439877,1736529044977,-500.0,9.831e-05,2]
[348439879,1736529044986,-500.0,9.831e-05,2]
[348439881,1736529044996,-500.0,9.831e-05,2]
[348439883,1736529045005,-500.0,9.831e-05,2]
[348439885,1736529045014,-500.0,9.831e-05,2]
[348439886,1736529045023,-500.0,9.831e-05,2]
[348439888,1736529045032,-500.0,9.831e-05,2]
[348439890,1736529045041,-500.0,9.831e-05,2]
[348439892,1736529045050,-500.0,9.831e-05,2]
[348439894,1736529045060,-500.0,9.831e-05,2]
[348439895,1736529045069,-500.0,9.831e-05,2]
[348439897,1736529045078,-500.0,9.831e-05,2]
[348439899,1736529045087,-840.66,9.831e-05,2]
[348439901,1736529045096,-500.0,9.831e-05,2]
[348439903,1736529045105,-580.36,9.831e-05,2]
[348439905,1736529045114,-500.0,9.831e-05,2]
[348439906,1736529045124,-1235.93,9.831e-05,2]
[348439908,1736529045133,-500.0,9.831e-05,2]
[348439910,1736529045143,-500.0,9.831e-05,2]
[348439912,1736529045152,-637.63,9.831e-05,2]
[348439914,1736529045161,-500.0,9.831e-05,2]
[348439915,1736529045170,-500.0,9.831e-05,2]
[348439916,1736529045180,-504.1,9.831e-05,2]
[348439917,1736529045191,-500.0,9.831e-05,2]
[348439918,1736529045200,-500.0,9.831e-05,2]
[348439919,1736529045209,-500.0,9.831e-05,2]
[348439920,1736529045220,-548.25,9.831e-05,2]
[348439921,1736529045230,-844.2,9.831e-05,2]
[348439922,1736529045239,-500.0,9.831e-05,2]
[348439923,1736529045248,-500.0,9.831e-05,2]
[348439924,1736529045258,-1626.16,9.831e-05,2]
[348439925,1736529045270,-500.0,9.831e-05,2]
[348439926,1736529045280,-500.0,9.831e-05,2]
[348439927,1736529045289,-2642.63,9.831e-05,2]
[348439928,1736529045298,-500.0,9.831e-05,2]
[348439929,1736529045308,-1094.21,9.831e-05,2]
[348439930,1736529045318,-500.0,9.831e-05,2]
[348439931,1736529045328,-500.0,9.831e-05,2]
[348439932,1736529045339,-500.0,9.831e-05,2]
[348439933,1736529045348,-500.0,9.831e-05,2]
[348439934,1736529045357,-519.16,9.831e-05,2]
[348439935,1736529045367,-500.0,9.831e-05,2]
[348439936,1736529045376,-500.0,9.831e-05,2]
[348439937,1736529045385,-511.86,9.831e-05,2]
[348439938,1736529045394,-500.0,9.831e-05,2]
[348439939,1736529045403,-905.8,9.831e-05,2]
[348439940,1736529045412,-500.0,9.831e-05,2]
[348439941,1736529045422,-450.04208943,9.831e-05,2]
[348439942,1736529045437,-49.95791057,9.831e-05,2]
[348439943,1736529045446,-500.0,9.831e-05,2]
[348439944,1736529045456,-500.0,9.831e-05,2]
[348439945,1736529045465,-269.67953221,9.831e-05,2]
[348439947,1736529045477,-859.11046779,9.831e-05,2]
[348439949,1736529045487,-500.0,9.831e-05,2]
[348439951,1736529045497,-816.09,9.831e-05,2]
[348439953,1736529045506,-148.84483641,9.831e-05,2]
[348439956,1736529045533,-508.74855659,9.831e-05,2]
[348439958,1736529045542,-527.18,9.831e-05,2]
[348439960,1736529045551,-585.55,9.831e-05,2]
[348439962,1736529045561,-500.0,9.831e-05,2]
[348439963,1736529045571,-590.08,9.831e-05,2]
[348439965,1736529045580,-513.46,9.831e-05,2]
[348439967,1736529045590,-500.0,9.831e-05,2]
[348439969,1736529045599,-1614.86,9.831e-05,2]
[348439971,1736529045608,-500.0,9.831e-05,2]
[348439972,1736529045619,-865.3,9.831e-05,2]
[348439974,1736529045629,-504.09,9.831e-05,2]
[348439976,1736529045638,-706.88085,9.831e-05,2]
[348439977,1736529045647,-500.0,9.831e-05,2]
[348439978,1736529045657,-2019.24,9.831e-05,2]
[348439979,1736529045666,-945.46,9.831e-05,2]
[348439980,1736529045675,-500.0,9.831e-05,2]
[348439981,1736529045687,-3929.15,9.831e-05,2]
[348439982,1736529045697,-517.02,9.831e-05,2]
[348439983,1736529045707,-500.0,9.831e-05,2]
[348439984,1736529045718,-1443.88,9.831e-05,2]
[348439985,1736529045730,-509.92,9.831e-05,2]
[348439986,1736529045740,-500.0,9.831e-05,2]
[348439987,1736529045750,-1256.77,9.831e-05,2]
[348439988,1736529045759,-798.34,9.831e-05,2]
[348439989,1736529045768,-500.0,9.831e-05,2]
[348439990,1736529045778,-500.0,9.831e-05,2]
[348439991,1736529045787,-2838.98,9.831e-05,2]
[348439992,1736529045796,-500.0,9.831e-05,2]
[348439993,1736529045807,-743.53,9.831e-05,2]
[348439994,1736529045817,-500.0,9.831e-05,2]
[348439995,1736529045826,-2474.33,9.831e-05,2]
[348439996,1736529045836,-1001.91,9.831e-05,2]
[348439998,1736529045845,-618.16,9.831e-05,2]
[348439999,1736529045854,-608.56,9.831e-05,2]
[348440001,1736529045863,-1943.91,9.831e-05,2]
[348440003,1736529045872,-500.0,9.831e-05,2]
[348440005,1736529045881,-636.7,9.831e-05,2]
[348440007,1736529045891,-500.0,9.831e-05,2]
[348440009,1736529045902,-817.92,9.831e-05,2]
[348440011,1736529045912,-500.0,9.831e-05,2]
[348440013,1736529045922,-500.0,9.831e-05,2]
[348440015,1736529045932,-2307.64,9.831e-05,2]
[348440017,1736529045942,-590.42,9.831e-05,2]
[348440019,1736529045951,-672.59,9.831e-05,2]
[348440021,1736529045960,-2782.54,9.831e-05,2]
[348440024,1736529045970,-500.0,9.831e-05,2]
[348440027,1736529045979,-627.11,9.831e-05,2]
[348440029,1736529045989,-502.94,9.831e-05,2]
[348440031,1736529045998,-500.0,9.831e-05,2]
[348440033,1736529046008,-500.0,9.831e-05,2]
[348440035,1736529046017,-500.79,9.831e-05,2]
[348440037,1736529046027,-657.28,9.831e-05,2]
[348440039,1736529046036,-500.0,9.831e-05,2]
[348440041,1736529046046,-432.34,9.831e-05,2]
[348440043,1736529046055,-500.0,9.831e-05,2]
[348440045,1736529046065,-500.0,9.832e-05,2]
[348440047,1736529046075,-500.0,9.832e-05,2]
[348440050,1736529046084,-500.0,9.832e-05,2]
[348440051,1736529046093,-500.0,9.832e-05,2]
[348440054,1736529046103,-1602.12,9.832e-05,2]
[348440056,1736529046112,-1260.15,9.832e-05,2]
[348440057,1736529046122,-2367.34,9.832e-05,2]
[348440060,1736529046132,-1130.18,9.832e-05,2]
[348440061,1736529046141,-2278.99,9.832e-05,2]
[348440064,1736529046151,-1035.37,9.832e-05,2]
[348440066,1736529046160,-693.42,9.832e-05,2]
[348440068,1736529046170,-897.93,9.832e-05,2]
[348440070,1736529046180,-671.22,9.836e-05,2]
[348440072,1736529046189,-500.0,9.844e-05,2]
[348440073,1736529046199,-500.0,9.844e-05,2]
[348440075,1736529046208,-500.0,9.844e-05,2]
[348440077,1736529046218,-500.0,9.844e-05,2]
[348440080,1736529046227,-500.0,9.844e-05,2]
[348440082,1736529046237,-542.72,9.844e-05,2]
[348440084,1736529046249,-500.0,9.844e-05,2]
[348440086,1736529046259,-500.0,9.844e-05,2]
[348440088,1736529046271,-500.0,9.844e-05,2]
[348440090,1736529046280,-500.0,9.844e-05,2]
[348440092,1736529046290,-500.0,9.844e-05,2]
[348440094,1736529046299,-500.0,9.844e-05,2]
[348440096,1736529046309,-500.0,9.844e-05,2]
[348440098,1736529046318,-500.0,9.844e-05,2]
[348440100,1736529046327,-500.0,9.844e-05,2]
[348440102,1736529046337,-500.0,9.844e-05,2]
[348440104,1736529046347,-500.0,9.844e-05,2]
[348440106,1736529046356,-500.0,9.844e-05,2]
[348440108,1736529046365,-500.0,9.844e-05,2]
[348440110,1736529046375,-513.08,9.844e-05,2]
[348440112,1736529046384,-172.62340039,9.844e-05,2]
[348440114,1736529046393,-500.0,9.844e-05,2]
[348440116,1736529046403,-500.0,9.844e-05,2]
[348440118,1736529046412,-500.0,9.844e-05,2]
[348440120,1736529046422,-500.0,9.844e-05,2]
[348440122,1736529046432,-500.0,9.844e-05,2]
[348440124,1736529046441,-500.0,9.844e-05,2]
[348440126,1736529046451,-500.0,9.844e-05,2]
[348440127,1736529046461,-500.54,9.844e-05,2]
[348440130,1736529046470,-500.0,9.844e-05,2]
[348440131,1736529046480,-500.0,9.844e-05,2]
[348440133,1736529046489,-500.0,9.844e-05,2]
[348440135,1736529046498,-500.0,9.844e-05,2]
[348440137,1736529046507,-500.0,9.844e-05,2]
[348440139,1736529046517,-500.0,9.844e-05,2]
[348440141,1736529046526,-559.88,9.844e-05,2]
[348440143,1736529046536,-500.0,9.844e-05,2]
[348440145,1736529046545,-500.0,9.844e-05,2]
[348440147,1736529046554,-647.27,9.844e-05,2]